bitfinex/quotes_SOLUSD_20241010
["timestamp","ask_amount","ask_price","bid_price","bid_amount"]
[1728539458093,7.1019,140.81,140.73,37.1056]
[1728539458307,7.1019,140.81,140.74,7.1051]
[1728539460213,24.1398923,140.85,140.74,7.1051]
[1728539460421,23.902374,140.84,140.74,7.1051]
[1728539460622,7.1019,140.81,140.74,7.1051]
[1728539461120,0.12549,140.84,140.72,17.7646]
[1728539461121,7.1023,140.8,140.73,7.1057]
[1728539461300,7.1023,140.8,140.73,1.06595123]
[1728539461501,24.1398923,140.85,140.75,17.7613]
[1728539461716,24.1398923,140.85,140.76,1.42044413]
[1728539461917,7.1008,140.83,140.77,7.1037]
[1728539462092,7.1008,140.83,140.78,1.42036505]
[1728539462415,7.4631083,140.85,140.78,8.52356505]
[1728539462799,7.4631083,140.85,140.79,7.1027]
[1728539463013,7.4631083,140.85,140.8,1.42013296]
[1728539463623,0.3630083,140.85,140.8,1.42013296]
[1728539463844,0.3630083,140.85,140.8,31.42013296]
[1728539464419,0.3630083,140.85,140.81,17.7535]
[1728539464717,0.3630083,140.85,140.8,30.0]
[1728539464929,7.4628083,140.85,140.8,30.0]
[1728539465311,7.4628083,140.85,140.75,70.0]
[1728539465312,7.1017,140.81,140.74,7.1048]
[1728539465508,7.1022,140.8,140.76,30.0]
[1728539465738,7.1017,140.82,140.76,30.0]
[1728539466311,0.3630083,140.85,140.76,30.0]
[1728539466312,0.12549,140.84,140.76,30.0]
[1728539466535,7.1023,140.8,140.76,30.0]
[1728539466759,7.1023,140.8,140.74,7.105]
[1728539466939,0.12549,140.84,140.73,18.82965123]
[1728539466940,7.1032,140.79,140.73,18.82965123]
[1728539467740,24.027864,140.84,140.73,1.06595123]
[1728539467918,7.1032,140.79,140.73,8.17165123]
[1728539468735,7.1033,140.78,140.73,7.1057]
[1728539468924,7.1039,140.77,140.72,24.8716]
[1728539469320,24.027864,140.84,140.72,24.8716]
[1728539469521,7.1035,140.78,140.72,24.8716]
[1728539470751,24.027864,140.84,140.72,24.8716]
[1728539470917,7.1048,140.75,140.7,15.7534]
[1728539471225,7.1054,140.74,140.68,24.8779]
[1728539471717,17.7568,140.8,140.68,24.8779]
[1728539471718,7.1059,140.73,140.68,24.8779]
[1728539472236,7.1059,140.73,140.68,17.7696]
[1728539472935,7.1059,140.73,140.68,24.8777]
[1728539473135,7.1053,140.74,140.68,24.8777]
[1728539473329,7.1063,140.72,140.68,17.7696]
[1728539474119,7.1063,140.72,140.65,6.1274]
[1728539474446,7.1069,140.71,140.66,7.1093]
[1728539475751,7.1069,140.71,140.65,6.1274]
[1728539475931,7.1073,140.7,140.65,13.2372]
[1728539476250,24.027864,140.75,140.64,24.885]
[1728539476448,7.1084,140.68,140.64,17.7748]
[1728539477640,17.7647,140.73,140.64,17.7748]
[1728539477850,7.1071,140.71,140.65,8.53142063]
[1728539478733,7.1068,140.71,140.65,1.42172063]
[1728539479044,7.1063,140.72,140.66,7.1091]
[1728539479256,25.776884,140.82,140.66,7.1091]
[1728539479257,299.41391456,140.8,140.67,1.42138461]
[1728539479556,7.105,140.75,140.68,17.7698]
[1728539479716,7.1055,140.74,140.69,1.42132595]
[1728539480135,7.106,140.73,140.69,1.42132595]
[1728539480335,7.1073,140.7,140.65,7.1098]
[1728539481124,7.1069,140.71,140.65,7.1098]
[1728539482245,7.1075,140.7,140.65,7.1098]
[1728539483949,24.027864,140.75,140.63,15.1842]
[1728539484122,7.1089,140.67,140.63,15.1842]
[1728539485351,23.776884,140.7,140.63,15.1842]
[1728539485556,7.1084,140.68,140.63,22.295]
[1728539486229,23.776884,140.7,140.63,15.1842]
[1728539486427,7.1088,140.67,140.63,15.1842]
[1728539488737,23.776884,140.7,140.64,1.42188903]
[1728539488947,30.884284,140.7,140.65,7.1097]
[1728539489151,30.884284,140.7,140.66,1.42172504]
[1728539489927,17.7636,140.74,140.67,7.1087]
[1728539490231,7.42854272,140.76,140.66,17.7725]
[1728539490431,7.1068,140.71,140.66,24.8817]
[1728539491448,7.1064,140.72,140.67,8.53013774]
[1728539491638,7.1063,140.73,140.68,7.1081]
[1728539491842,7.1063,140.72,140.67,7.1088]
[1728539492239,7.1063,140.72,140.66,17.7725]
[1728539492240,7.1051,140.75,140.7,7.1072]
[1728539492440,7.1051,140.75,140.71,1.42114628]
[1728539493034,7.1051,140.75,140.71,8.52794628]
[1728539493563,7.1042,140.76,140.71,8.52744628]
[1728539493863,7.1048,140.75,140.7,24.8746]
[1728539494045,7.1048,140.75,140.71,1.42104195]
[1728539494448,7.104,140.77,140.72,8.52724007]
[1728539494750,7.104,140.77,140.72,7.1062]
[1728539495256,17.756,140.8,140.72,7.1062]
[1728539495558,7.1043,140.76,140.72,7.1062]
[1728539496048,7.1043,140.76,140.7,17.7674]
[1728539496245,7.1048,140.75,140.7,24.8746]
[1728539496796,7.1053,140.74,140.7,24.8746]
[1728539496948,24.027864,140.79,140.69,6.331]
[1728539496949,7.1059,140.73,140.69,6.331]
[1728539497858,7.1068,140.71,140.67,17.7719]
[1728539500164,17.7614,140.76,140.65,6.4492]
[1728539500341,7.1074,140.7,140.65,13.5589]
[1728539500549,7.1074,140.7,140.66,1.42157168]
[1728539501065,7.1078,140.69,140.65,6.4492]
[1728539501546,7.1083,140.68,140.65,6.4492]
[1728539501942,7.1079,140.69,140.65,6.4492]
[1728539502346,17.7643,140.74,140.64,24.8856]
[1728539502347,7.1083,140.68,140.64,24.8856]
[1728539503551,7.1083,140.68,140.64,26.30735496]
[1728539503873,7.1083,140.68,140.64,24.8856]
[1728539504379,7.1079,140.69,140.64,24.8856]
[1728539507967,7.1074,140.7,140.65,8.53145781]
[1728539508176,7.1079,140.69,140.65,7.1097]
[1728539508376,7.1079,140.69,140.66,1.42170136]
[1728539508881,7.1079,140.69,140.65,7.1097]
[1728539509773,0.25098,140.73,140.63,15.1842]
[1728539509973,7.1095,140.66,140.63,15.1842]
[1728539510856,7.1089,140.67,140.63,15.1842]
[1728539511271,7.1089,140.67,140.64,1.42184954]
[1728539511473,7.1084,140.68,140.64,8.53204954]
[1728539511974,7.1084,140.68,140.63,15.1842]
[1728539512180,7.1088,140.67,140.63,15.1842]
[1728539512876,7.1094,140.66,140.63,15.1842]
[1728539513067,7.1089,140.67,140.63,15.1842]
[1728539513282,7.1089,140.67,140.63,16.60615651]
[1728539513953,0.12549,140.71,140.63,16.60615651]
[1728539514157,7.1083,140.68,140.63,23.71655651]
[1728539515478,7.1083,140.68,140.63,22.2946]
[1728539517279,17.7664,140.72,140.64,1.42173854]
[1728539517491,7.1073,140.7,140.65,7.1098]
[1728539517962,7.1073,140.7,140.61,20.703]
[1728539517963,17.7689,140.7,140.61,20.703]
[1728539518170,17.7689,140.7,140.62,30.0]
[1728539518171,7.1102,140.65,140.62,30.0]
[1728539518887,7.1104,140.64,140.62,30.0]
[1728539519961,20.0,140.74,140.63,1.42211106]
[1728539520163,7.1087,140.68,140.63,8.53251106]
[1728539521062,7.109,140.67,140.63,1.42211106]
[1728539521689,7.109,140.67,140.63,31.42211106]
[1728539522292,7.1083,140.68,140.64,8.53213518]
[1728539522672,17.7652,140.73,140.64,1.42183518]
[1728539522861,49.57236879,140.75,140.64,1.42183518]
[1728539523066,7.1099,140.65,140.63,30.0]
[1728539523482,7.1099,140.65,140.61,8.56408542]
[1728539523805,17.7703,140.69,140.61,15.67578542]
[1728539523966,7.1096,140.66,140.61,14.2537]
[1728539524171,7.1096,140.66,140.62,8.53312321]
[1728539524371,7.1096,140.66,140.63,1.42186373]
[1728539524566,17.7703,140.69,140.63,1.42186373]
[1728539524770,7.1088,140.67,140.63,1.42186373]
[1728539527379,7.1084,140.68,140.64,7.1103]
[1728539527681,7.1084,140.68,140.65,1.42174039]
[1728539528210,67.33486879,140.75,140.66,7.1091]
[1728539528507,7.1057,140.74,140.67,1.42147572]
[1728539528802,7.1059,140.73,140.69,17.7693]
[1728539528973,7.1059,140.73,140.69,19.19061582]
[1728539529683,7.1047,140.76,140.71,7.1067]
[1728539529883,6.543,140.79,140.72,8.52720047]
[1728539530192,7.1043,140.76,140.71,7.1067]
[1728539530399,42.9310781,140.83,140.78,17.7571]
[1728539530400,11.13346441,140.83,140.78,17.7571]
[1728539530607,7.1007,140.83,140.78,30.0]
[1728539530791,7.1012,140.82,140.78,30.0]
[1728539531708,0.519805,140.87,140.78,30.0]
[1728539531709,7.1018,140.81,140.78,30.0]
[1728539531902,7.1011,140.83,140.78,30.0]
[1728539532102,7.1013,140.82,140.76,7.1042]
[1728539532288,7.1013,140.82,140.77,1.42034118]
[1728539532608,7.1013,140.82,140.76,7.1042]
[1728539533108,7.1017,140.81,140.75,27.1047]
[1728539533308,7.101,140.83,140.77,7.1037]
[1728539533686,7.101,140.83,140.78,1.42031659]
[1728539533883,7.1013,140.82,140.76,47.7605]
[1728539534395,7.1017,140.81,140.76,47.7605]
[1728539534597,7.1017,140.81,140.76,17.7605]
[1728539534801,0.519805,140.87,140.77,1.42036758]
[1728539534802,7.1012,140.82,140.77,1.42036758]
[1728539535605,7.1012,140.82,140.77,8.52396758]
[1728539535797,7.1012,140.82,140.77,7.1036]
[1728539536592,7.1012,140.82,140.76,17.7605]
[1728539536891,7.1012,140.82,140.76,24.8647]
[1728539537086,7.101,140.83,140.77,7.1033]
[1728539537314,7.101,140.83,140.77,7.1037]
[1728539538420,7.1012,140.82,140.77,7.1037]
[1728539538990,0.25098,140.86,140.73,22.4931]
[1728539539200,0.25098,140.86,140.75,30.0]
[1728539539201,7.1027,140.8,140.75,30.0]
[1728539539403,7.1027,140.8,140.75,37.1047]
[1728539539924,7.1012,140.83,140.78,7.1031]
[1728539540103,7.1012,140.83,140.79,1.42030521]
[1728539541219,7.1012,140.83,140.78,7.1031]
[1728539541410,7.1012,140.83,140.79,1.420258]
[1728539541725,7.1012,140.83,140.78,7.1031]
[1728539542214,7.1012,140.83,140.79,1.42021894]
[1728539542399,7.1012,140.83,140.78,7.1031]
[1728539543204,7.1013,140.82,140.79,30.0]
[1728539543407,17.87389,140.86,140.79,30.0]
[1728539544011,7.1019,140.81,140.79,30.0]
[1728539544204,7.1019,140.81,140.76,30.0]
[1728539544602,7.1019,140.81,140.76,37.1038]
[1728539545006,7.1019,140.81,140.76,30.0]
[1728539545207,7.1013,140.82,140.77,8.52403503]
[1728539545414,7.1013,140.82,140.78,30.0]
[1728539545818,7.1022,140.8,140.76,7.1042]
[1728539546002,7.1028,140.79,140.74,20.0]
[1728539546204,7.1028,140.79,140.74,27.1052]
[1728539546410,7.1028,140.79,140.75,30.0]
[1728539546921,17.87699,140.84,140.75,30.0]
[1728539547130,7.1018,140.81,140.76,8.52464178]
[1728539547295,7.1018,140.81,140.75,30.0]
[1728539547296,23.776884,140.85,140.77,30.0]
[1728539547500,23.776884,140.85,140.78,1.42032086]
[1728539547501,7.1002,140.84,140.78,1.42032086]
[1728539547700,7.1002,140.84,140.77,37.1033]
[1728539547908,7.1002,140.84,140.78,1.42032415]
[1728539548115,7.1002,140.84,140.78,8.52312415]
[1728539549023,7.1002,140.84,140.78,7.1028]
[1728539549226,7.1002,140.84,140.79,1.42032163]
[1728539549418,7.1002,140.84,140.79,8.52292163]
[1728539549898,7.0997,140.85,140.8,7.1022]
[1728539550098,7.0992,140.86,140.81,1.42018844]
[1728539550318,7.0992,140.86,140.81,8.52178844]
[1728539550831,0.519805,140.87,140.83,17.7516]
[1728539551004,0.519805,140.87,140.83,24.8523]
[1728539552027,0.519805,140.87,140.83,17.7516]
[1728539552235,0.519805,140.87,140.84,1.41991879]
[1728539552527,0.519805,140.87,140.83,47.7516]
[1728539552528,0.519805,140.87,140.85,7.0996]
[1728539552821,0.519805,140.87,140.82,7.1011]
[1728539553027,7.618505,140.87,140.82,7.1011]
[1728539553234,0.519805,140.87,140.85,7.0992]
[1728539554111,0.519805,140.87,140.84,7.1002]
[1728539554434,0.519805,140.87,140.83,24.8515]
[1728539554618,7.618605,140.87,140.83,17.7508]
[1728539555332,0.519805,140.87,140.8,21.6149]
[1728539555533,7.0992,140.86,140.81,30.0]
[1728539555717,7.0992,140.86,140.82,7.1012]
[1728539557131,7.0992,140.86,140.81,7.1017]
[1728539558129,0.519805,140.87,140.83,7.1004]
[1728539558320,0.519805,140.87,140.84,1.41986884]
[1728539558506,7.618505,140.87,140.84,1.41986884]
[1728539558819,7.618505,140.87,140.83,1.41985873]
[1728539559232,7.618505,140.87,140.82,24.8533]
[1728539559610,7.618505,140.87,140.82,24.8532]
[1728539559807,0.519805,140.87,140.85,7.0996]
[1728539560026,0.519805,140.87,140.86,1.41957471]
[1728539560441,7.4193397,140.96,140.93,6.4187]
[1728539560603,0.8406203,141.02,140.92,16.1899]
[1728539560806,17.7295,141.01,140.88,22.6086]
[1728539561024,7.0944,140.96,140.9,7.0971]
[1728539561209,25.1333088,141.01,140.89,17.7439]
[1728539561406,7.0939,140.97,140.91,7.0965]
[1728539562019,7.0942,140.96,140.91,7.0965]
[1728539562215,7.0942,140.96,140.9,7.0971]
[1728539562403,17.7295,141.01,140.89,17.7439]
[1728539562603,7.0948,140.95,140.89,17.7439]
[1728539563007,0.12549,141.0,140.89,17.7439]
[1728539563213,7.0957,140.93,140.88,22.6086]
[1728539563532,7.0957,140.93,140.88,16.1899]
[1728539563727,7.0957,140.93,140.87,7.0987]
[1728539563923,7.0957,140.93,140.88,1.41945583]
[1728539564322,17.7332,140.98,140.88,1.41945583]
[1728539564540,7.0957,140.93,140.87,7.0987]
[1728539565333,7.0957,140.93,140.88,1.41936538]
[1728539565523,7.0957,140.93,140.87,7.0987]
[1728539565725,17.7332,140.98,140.87,7.0987]
[1728539566034,44.027864,140.97,140.85,24.8476]
[1728539566328,7.0972,140.9,140.86,1.41944119]
[1728539566514,7.0972,140.9,140.86,1.41964342]
[1728539566924,7.0977,140.89,140.83,7.1007]
[1728539567131,7.0977,140.89,140.84,1.41970272]
[1728539567944,7.0977,140.89,140.84,8.51980272]
[1728539568122,0.12549,140.94,140.85,1.419649]
[1728539568437,0.12549,140.9,140.85,1.419649]
[1728539568615,7.22279,140.9,140.85,1.419649]
[1728539569111,7.22279,140.9,140.85,8.519249]
[1728539571438,7.22279,140.9,140.84,24.8506]
[1728539571938,7.22279,140.9,140.85,1.41973799]
[1728539573530,7.0978,140.89,140.84,24.8506]
[1728539573743,7.0978,140.89,140.85,1.41980259]
[1728539575627,7.0978,140.89,140.84,24.8506]
[1728539578920,7.22279,140.9,140.85,8.519501]
[1728539579377,7.22279,140.9,140.85,8.51939397]
[1728539579378,7.0978,140.89,140.85,8.51939397]
[1728539579650,7.22279,140.9,140.85,8.51939397]
[1728539580223,7.0978,140.89,140.85,8.51939397]
[1728539584144,25.12771742,140.95,140.87,7.0985]
[1728539584450,7.0967,140.91,140.87,1.41953136]
[1728539585226,24.3695,140.96,140.91,7.0965]
[1728539585442,7.38982177,140.97,140.88,16.5827]
[1728539585645,7.0953,140.94,140.9,24.8395]
[1728539587928,7.0953,140.94,140.9,17.7424]
[1728539588753,7.0953,140.94,140.9,19.16165338]
[1728539589240,7.0953,140.94,140.9,17.7424]
[1728539589750,17.735,140.97,140.88,16.5827]
[1728539589940,7.097,140.91,140.88,16.5827]
[1728539590137,0.12549,140.96,140.88,18.00213735]
[1728539590454,7.0963,140.92,140.88,18.00213735]
[1728539590830,7.0963,140.92,140.88,16.5827]
[1728539591533,0.12549,140.96,140.88,16.5827]
[1728539591728,0.12549,140.96,140.87,13.3769]
[1728539591729,7.0973,140.9,140.86,17.7474]
[1728539593459,7.0973,140.9,140.86,19.16701981]
[1728539595137,7.0967,140.91,140.86,19.16701981]
[1728539595336,7.0967,140.91,140.86,17.7474]
[1728539595553,7.0967,140.91,140.86,24.8465]
[1728539595944,7.0967,140.91,140.87,1.41951052]
[1728539597253,24.027864,140.94,140.87,1.41951052]
[1728539597459,7.0952,140.94,140.89,7.0972]
[1728539599240,17.7334,140.98,140.9,1.41924889]
[1728539599454,7.0958,140.93,140.88,24.8428]
[1728539600255,7.0963,140.92,140.88,24.8428]
[1728539601163,7.0963,140.92,140.88,17.7447]
[1728539601750,7.0969,140.91,140.87,7.0985]
[1728539601944,7.0969,140.91,140.86,7.0991]
[1728539602468,7.0969,140.91,140.87,1.41952517]
[1728539604770,7.0969,140.91,140.86,7.0991]
[1728539605464,7.0973,140.9,140.85,17.7489]
[1728539605638,7.0973,140.9,140.85,24.8485]
[1728539607163,7.0977,140.89,140.85,24.8485]
[1728539607866,7.0988,140.87,140.84,22.7711]
[1728539608459,7.0992,140.86,140.84,22.7711]
[1728539608661,7.0998,140.85,140.8,23.7657333]
[1728539608849,7.0998,140.85,140.8,30.8675333]
[1728539609573,7.0998,140.85,140.81,7.1016]
[1728539609745,7.0993,140.86,140.81,7.1016]
[1728539611043,7.0997,140.85,140.8,30.8679333]
[1728539611677,7.1006,140.84,140.8,23.7657333]
[1728539612159,7.1006,140.84,140.8,22.7003]
[1728539612651,7.1006,140.84,140.8,24.12051747]
[1728539613682,7.0998,140.85,140.8,31.22261747]
[1728539614167,7.0998,140.85,140.8,24.12051747]
[1728539614482,7.0993,140.86,140.81,7.1016]
[1728539614684,7.0993,140.86,140.82,1.42009426]
[1728539615059,7.0993,140.86,140.81,7.1016]
[1728539615882,7.0998,140.85,140.81,7.1016]
[1728539616077,7.0998,140.85,140.8,29.8024]
[1728539616259,7.0998,140.85,140.8,29.74049]
[1728539616989,7.1003,140.84,140.8,22.63839]
[1728539617166,7.1007,140.83,140.8,22.63839]
[1728539617362,7.1007,140.83,140.8,16.5757]
[1728539617568,7.1007,140.83,140.79,17.7562]
[1728539618885,0.12549,140.87,140.79,19.17652834]
[1728539619061,7.0998,140.85,140.8,7.102]
[1728539619264,7.0998,140.85,140.81,1.42018368]
[1728539619492,23.776884,140.84,140.8,7.102]
[1728539620177,30.877184,140.84,140.8,7.102]
[1728539620985,23.776884,140.84,140.79,17.7562]
[1728539621187,7.1008,140.83,140.79,24.8589]
[1728539621387,23.776884,140.84,140.78,6.5999]
[1728539621388,7.1013,140.82,140.78,13.703]
[1728539622175,7.1008,140.83,140.78,13.703]
[1728539624698,7.1017,140.81,140.77,30.5123]
[1728539624865,7.1013,140.82,140.77,30.5123]
[1728539627094,0.12549,140.83,140.78,8.52323484]
[1728539627272,7.1014,140.82,140.77,30.5124]
[1728539628209,7.1019,140.81,140.77,14.2457]
[1728539628390,7.1013,140.82,140.77,14.2457]
[1728539628588,7.1023,140.8,140.77,7.142]
[1728539629085,7.1018,140.81,140.77,7.142]
[1728539629284,0.12549,140.82,140.77,7.142]
[1728539629590,7.1028,140.79,140.77,7.142]
[1728539629987,7.1022,140.8,140.77,7.142]
[1728539630382,0.12549,140.82,140.76,7.142]
[1728539630598,7.1023,140.8,140.76,7.142]
[1728539630789,7.1023,140.8,140.76,15.66686696]
[1728539631604,7.1023,140.8,140.76,14.2462]
[1728539634798,7.1028,140.79,140.76,7.142]
[1728539635117,7.1023,140.8,140.76,7.142]
[1728539636207,7.1028,140.79,140.76,7.142]
[1728539637811,7.1023,140.8,140.76,1.42065881]
[1728539638005,7.1023,140.8,140.75,13.2349]
[1728539638690,6.6023,140.8,140.75,13.2349]
[1728539639506,7.1029,140.79,140.75,6.1303]
[1728539639683,0.12549,140.82,140.75,6.1303]
[1728539639883,7.1028,140.79,140.75,6.1303]
[1728539640292,7.1028,140.79,140.76,1.42079423]
[1728539640491,7.1028,140.79,140.75,13.2349]
[1728539640779,23.776884,140.78,140.73,16.312]
[1728539640984,7.1051,140.75,140.73,16.312]
[1728539641385,7.1043,140.76,140.73,16.312]
[1728539641604,23.776884,140.78,140.73,16.312]
[1728539641605,7.1038,140.77,140.73,16.312]
[1728539642012,25.12702471,140.85,140.73,39.66942472]
[1728539642211,7.1017,140.82,140.77,7.1033]
[1728539642511,7.1017,140.81,140.77,7.1033]
[1728539642894,7.1008,140.83,140.78,24.8605]
[1728539643215,7.39432471,140.85,140.78,24.8606]
[1728539643509,7.39432471,140.85,140.78,17.7574]
[1728539643712,7.1003,140.84,140.79,8.52305374]
[1728539644597,7.0998,140.85,140.8,16.105]
[1728539644806,7.0998,140.85,140.8,23.2069]
[1728539645312,7.0992,140.86,140.81,8.52192754]
[1728539646282,295.3785,140.92,140.81,1.42022754]
[1728539646589,7.0983,140.88,140.83,24.8525]
[1728539646800,35.5785,140.92,140.84,8.52012501]
[1728539646801,7.0978,140.89,140.84,8.52012501]
[1728539647711,7.0978,140.89,140.84,7.1002]
[1728539649898,0.25098,140.91,140.83,23.7937]
[1728539650209,7.0983,140.88,140.83,30.8944]
[1728539652006,24.027864,140.89,140.8,33.8602]
[1728539652705,7.1002,140.84,140.8,33.8602]
[1728539653416,7.0998,140.85,140.81,1.42016616]
[1728539653796,7.0998,140.85,140.8,40.9623]
[1728539657915,7.1003,140.84,140.8,33.8602]
[1728539658121,24.027864,140.87,140.79,6.3482]
[1728539658296,24.027864,140.87,140.77,15.4589]
[1728539658297,0.25098,140.83,140.77,15.4589]
[1728539658622,24.027864,140.83,140.77,15.4589]
[1728539658804,7.102,140.81,140.77,15.4589]
[1728539659495,7.1032,140.78,140.75,6.3825]
[1728539659701,24.027864,140.83,140.75,6.3825]
[1728539660507,7.1028,140.79,140.76,1.42069539]
[1728539661810,7.1028,140.79,140.75,6.3825]
[1728539662000,7.1028,140.79,140.75,7.80317667]
[1728539663823,7.1028,140.79,140.75,6.3825]
[1728539664926,24.027864,140.83,140.75,6.3825]
[1728539665108,7.1033,140.78,140.75,6.3825]
[1728539666724,7.1033,140.78,140.74,40.7087]
[1728539666725,7.1038,140.77,140.74,15.841]
[1728539667594,7.1038,140.77,140.72,7.1061]
[1728539667798,7.1044,140.76,140.71,40.243]
[1728539668019,7.1044,140.76,140.71,47.3497]
[1728539668524,7.1048,140.75,140.71,47.3497]
[1728539668699,7.1053,140.74,140.69,7.1077]
[1728539669022,11.2352,140.79,140.69,7.1077]
[1728539669023,7.1059,140.73,140.69,7.1077]
[1728539669221,7.1059,140.73,140.68,42.06587674]
[1728539669727,7.1059,140.73,140.68,40.9997]
[1728539670301,7.1063,140.72,140.68,40.9997]
[1728539671329,7.1057,140.74,140.69,1.42132965]
[1728539671633,24.027864,140.77,140.68,40.9997]
[1728539671826,23.776884,140.74,140.7,7.1072]
[1728539672124,30.882284,140.74,140.68,33.8915]
[1728539672313,7.1058,140.73,140.68,40.9997]
[1728539673839,7.1064,140.72,140.68,40.9997]
[1728539674017,7.1064,140.72,140.68,33.8915]
[1728539675330,30.882484,140.74,140.68,35.31293187]
[1728539675532,7.1056,140.74,140.69,7.1073]
[1728539676029,7.1056,140.74,140.7,1.42123574]
[1728539677647,7.1056,140.74,140.7,7.1071]
[1728539678837,7.1056,140.74,140.69,7.1076]
[1728539680125,7.1056,140.74,140.7,1.42123576]
[1728539680323,7.1056,140.74,140.69,7.1076]
[1728539681229,7.1062,140.73,140.68,40.9993]
[1728539683430,7.1053,140.74,140.69,8.5286709]
[1728539683648,7.1053,140.74,140.7,7.1071]
[1728539683649,23.776884,140.74,140.7,7.1071]
[1728539683843,23.776884,140.74,140.71,1.42121676]
[1728539684345,23.776884,140.74,140.68,33.8915]
[1728539684519,30.882384,140.74,140.69,7.1077]
[1728539684948,30.882384,140.74,140.7,1.42121699]
[1728539685520,30.882384,140.74,140.69,7.1077]
[1728539691152,7.1059,140.73,140.69,7.1077]
[1728539692136,7.1059,140.73,140.68,40.9998]
[1728539693353,23.776884,140.72,140.68,40.9998]
[1728539694947,7.1059,140.73,140.69,1.42143098]
[1728539695152,18.62147812,140.79,140.72,7.1061]
[1728539695359,18.62147812,140.79,140.73,7.1057]
[1728539695651,6.4593,140.82,140.74,1.42094348]
[1728539695834,7.1029,140.79,140.74,7.1049]
[1728539696550,6.4593,140.82,140.74,7.1049]
[1728539696843,7.1032,140.78,140.74,7.1049]
[1728539697045,7.1029,140.79,140.75,1.42083639]
[1728539697219,7.1029,140.79,140.75,8.52553639]
[1728539697423,7.1016,140.82,140.77,7.1037]
[1728539697651,11.2352,140.83,140.75,17.7618]
[1728539697836,7.1023,140.8,140.75,24.8665]
[1728539700432,7.1023,140.8,140.76,1.42068188]
[1728539700642,7.1023,140.8,140.75,24.8665]
[1728539701450,11.2352,140.83,140.75,17.7618]
[1728539701451,0.12549,140.78,140.75,17.7618]
[1728539701639,0.12549,140.78,140.74,15.6332]
[1728539701640,31.005674,140.78,140.74,15.6332]
[1728539702051,31.005674,140.78,140.73,13.568]
[1728539702052,7.1038,140.77,140.73,6.4624]
[1728539702353,7.1038,140.77,140.73,7.88337714]
[1728539702762,7.1038,140.77,140.73,6.4624]
[1728539704029,7.1038,140.77,140.72,26.29229435]
[1728539704030,7.1038,140.77,140.72,24.8713]
[1728539704461,0.12549,140.77,140.72,17.7651]
[1728539704663,7.1046,140.76,140.72,17.7651]
[1728539705158,0.12549,140.77,140.71,16.5527]
[1728539705453,7.1064,140.72,140.68,17.7695]
[1728539706860,7.1064,140.72,140.68,24.8777]
[1728539707229,7.1064,140.72,140.68,17.7695]
[1728539707954,7.1068,140.71,140.67,22.8391]
[1728539708151,7.1068,140.71,140.67,15.7304]
[1728539711560,0.12549,140.75,140.67,15.7304]
[1728539711763,24.027864,140.75,140.68,1.42147789]
[1728539713246,14.48031417,140.78,140.73,7.1053]
[1728539713451,7.1028,140.79,140.74,8.52611991]
[1728539713857,19.1594602,140.84,140.76,7.1042]
[1728539714065,7.1023,140.8,140.76,7.1042]
[1728539714971,7.1023,140.8,140.75,24.8659]
[1728539715763,23.902374,140.79,140.75,24.8659]
[1728539716840,31.005174,140.79,140.75,17.7612]
[1728539717262,23.902374,140.79,140.74,15.7722]
[1728539717466,23.902374,140.77,140.74,15.7722]
[1728539718173,23.902374,140.77,140.7,23.039]
[1728539718549,0.12549,140.74,140.71,7.1066]
[1728539718750,23.902374,140.77,140.71,8.5277271]
[1728539719169,23.902374,140.75,140.71,8.5277271]
[1728539719554,23.902374,140.75,140.71,7.1066]
[1728539719752,23.902374,140.75,140.7,15.9322]